bitfinex-derivatives/quotes_ETHF0:USTF0_20260203
["timestamp","ask_amount","ask_price","bid_price","bid_amount"]
[1770088327662,2.40373066,2305.3,2304.6,2.7135939]
[1770088327863,2.40373066,2305.3,2304.6,0.21715]
[1770088328261,37.98105354,2305.9,2304.8,2.4964439]
[1770088328564,37.98105354,2306.3,2305.0,0.21712]
[1770088328760,3.67815783,2306.2,2305.0,2.7135639]
[1770088328965,3.67815783,2306.1,2305.0,2.7135639]
[1770088329166,0.00386289,2306.3,2305.3,2.4964439]
[1770088329461,0.00386289,2306.3,2305.3,0.00420954]
[1770088330267,2.40373066,2306.1,2305.3,0.00420954]
[1770088334268,2.40373066,2306.1,2305.4,0.21708]
[1770088335469,2.40373066,2306.1,2305.4,2.7135239]
[1770088336770,0.00386289,2306.3,2305.5,2.7135139]
[1770088337469,2.40759355,2306.3,2305.5,2.7135139]
[1770088338267,2.40759355,2306.3,2305.5,0.21707]
[1770088338566,2.40759355,2306.3,2305.3,0.00420954]
[1770088339468,2.40759355,2306.3,2305.3,0.22129954]
[1770088342077,2.40759355,2306.3,2305.3,2.39817196]
[1770088342272,2.40759355,2306.3,2305.5,0.21707]
[1770088343572,2.30077915,2306.3,2305.5,2.61103242]
[1770088343777,2.30077915,2306.3,2305.5,0.21707]
[1770088343977,2.30077915,2306.3,2305.3,0.00420954]
[1770088344378,2.30077915,2306.3,2305.3,2.39817196]
[1770088345881,2.30077915,2306.3,2305.3,2.61526196]
[1770088348581,2.30077915,2306.3,2305.6,2.39396242]
[1770088349585,2.30077915,2306.3,2305.5,0.21707]
[1770088350785,2.30077915,2306.3,2305.3,0.00420954]
[1770088351292,2.30077915,2306.3,2305.3,2.61526196]
[1770088351490,2.30077915,2306.3,2305.4,0.21708]
[1770088351694,0.00386289,2306.3,2305.7,0.21705]
[1770088352391,2.29691626,2306.6,2305.9,2.39396242]
[1770088352592,2.29691626,2306.6,2305.9,2.61099242]
[1770088352786,2.29691626,2306.6,2305.9,0.21703]
[1770088353386,2.30250583,2306.6,2305.9,0.21703]
[1770088353792,2.30250583,2306.6,2305.6,2.39396242]
[1770088354786,2.30250583,2306.6,2305.4,0.21708]
[1770088355193,2.29691626,2306.4,2305.4,0.21708]
[1770088355790,2.29691626,2306.4,2305.4,2.61104242]
[1770088357492,5.98333522,2306.3,2305.4,2.61104242]
[1770088357684,2.29691626,2306.3,2305.4,2.61104242]
[1770088358992,5.98569673,2306.2,2305.4,2.61104242]
[1770088359195,2.29691626,2306.2,2305.4,2.61104242]
[1770088359590,2.29691626,2306.0,2305.3,2.54920954]
[1770088360886,2.29691626,2305.8,2305.3,2.54920954]
[1770088361390,2.29691626,2305.8,2305.3,0.00420954]
[1770088361588,2.29691626,2305.6,2305.1,3.037]
[1770088362592,2.29691626,2305.6,2305.1,3.04092666]
[1770088363999,2.29691626,2305.6,2304.7,2.545]
[1770088364000,1.84982787,2305.4,2304.7,2.545]
[1770088365101,2.5170252,2305.7,2304.7,2.54887767]
[1770088365304,3.68481701,2305.6,2304.8,2.39396242]
[1770088365598,2.5170252,2305.8,2304.8,2.61110242]
[1770088365900,3.68342069,2305.7,2304.8,2.61110242]
[1770088366101,3.68342069,2305.6,2304.8,2.61110242]
[1770088366396,2.5170252,2305.9,2304.8,2.61110242]
[1770088366603,3.68304796,2305.8,2304.8,2.61110242]
[1770088366800,3.68304796,2305.7,2304.8,2.61110242]
[1770088367099,3.68304796,2305.6,2304.8,2.61110242]
[1770088367303,4.35231076,2305.9,2304.8,2.61110242]
[1770088367599,3.68807035,2305.8,2304.8,2.61110242]
[1770088367903,4.35231076,2306.1,2305.0,2.61108242]
[1770088368103,3.68962721,2306.0,2305.0,2.61108242]
[1770088368294,3.68962721,2305.9,2305.0,2.61108242]
[1770088368498,3.68962721,2305.8,2305.0,2.61108242]
[1770088368699,4.35231076,2306.1,2305.0,2.61108242]
[1770088368899,3.68946225,2306.0,2305.0,2.61108242]
[1770088369099,3.68946225,2305.9,2305.0,2.61108242]
[1770088369302,3.68946225,2305.8,2305.0,2.61108242]
[1770088369503,1.83528556,2306.1,2305.3,2.39396242]
[1770088369801,3.68891061,2306.0,2305.3,2.39396242]
[1770088370003,2.5170252,2306.2,2305.3,2.39396242]
[1770088370201,3.68878424,2306.1,2305.3,2.39396242]
[1770088370399,2.5170252,2306.4,2305.3,2.39396242]
[1770088370595,1.84517875,2306.2,2305.5,0.21707]
[1770088371505,4.36220395,2306.5,2305.5,2.73487943]
[1770088371705,3.69203244,2306.4,2305.5,2.73487943]
[1770088372002,3.69203244,2306.3,2305.5,2.73487943]
[1770088372199,0.00558957,2306.6,2305.8,2.73484943]
[1770088372607,0.00558957,2306.6,2306.1,2.73481943]
[1770088373908,0.00558957,2306.6,2306.1,0.21701]
[1770088375006,1.89070878,2306.6,2306.1,0.21701]
[1770088375806,0.00558957,2306.6,2306.1,0.21701]
[1770088376005,1.89070878,2306.6,2305.7,2.545]
[1770088376499,1.89070878,2306.6,2305.7,5.06280943]
[1770088376698,1.89070878,2306.6,2305.7,2.545]
[1770088376907,1.8854325,2306.4,2305.7,2.545]
[1770088377707,0.00558957,2306.6,2305.8,2.51780943]
[1770088377908,3.68793816,2306.5,2305.8,2.51780943]
[1770088378109,0.00558957,2306.6,2305.8,2.73485943]
[1770088380110,1.88869657,2306.6,2305.8,2.73485943]
[1770088381512,0.00558957,2306.6,2305.9,6.03089024]
[1770088381808,0.00558957,2306.6,2306.0,2.51780943]
[1770088382201,1.89711555,2306.6,2305.9,3.51308081]
[1770088382909,0.00558957,2306.6,2306.0,2.51780943]
[1770088383512,0.00558957,2306.6,2306.2,2.51780943]
[1770088384205,2.7339652,2307.0,2306.2,2.51780943]
[1770088384410,3.68315274,2306.9,2306.2,2.51780943]
[1770088384610,3.68315274,2306.8,2306.2,2.51780943]
[1770088384811,4.62483838,2307.0,2306.2,2.51780943]
[1770088385011,3.68239409,2306.9,2306.2,2.51780943]
[1770088385207,3.68239409,2306.8,2306.2,2.51780943]
[1770088385412,1.89087318,2306.7,2305.9,0.21704]
[1770088385612,1.89087318,2306.7,2305.9,2.73484943]
[1770088386211,3.51308081,2306.8,2306.0,2.51780943]
[1770088386412,1.89087318,2306.8,2306.0,2.51780943]
[1770088386713,1.89087318,2306.8,2305.9,0.21704]
[1770088388214,1.90070823,2306.6,2305.7,2.545]
[1770088388417,1.90070823,2306.6,2305.7,5.06280943]
[1770088389019,1.90070823,2306.6,2305.8,2.51780943]
[1770088394021,1.90070823,2306.6,2305.7,2.545]
[1770088394520,1.89685181,2306.4,2305.6,2.51780943]
[1770088395217,3.68684669,2306.3,2305.6,2.51780943]
[1770088395419,1.89685181,2306.4,2305.6,2.51780943]
[1770088395721,3.68879175,2306.3,2305.6,2.51780943]
[1770088395924,1.89542569,2306.5,2305.6,2.51780943]
[1770088396122,1.89542569,2306.4,2305.6,2.51780943]
[1770088396317,3.68904501,2306.3,2305.6,2.51780943]
[1770088396523,1.89542569,2306.4,2305.6,2.51780943]
[1770088396724,3.69009177,2306.3,2305.6,2.51780943]
[1770088397023,2.5170252,2306.6,2305.6,2.51780943]
[1770088397223,8.11089751,2306.5,2305.6,2.51780943]
[1770088397524,3.68958528,2306.4,2305.6,2.51780943]
[1770088397722,3.68958528,2306.4,2305.9,2.51780943]
[1770088398022,2.5170252,2306.7,2305.9,2.51780943]
[1770088398221,3.69192819,2306.6,2305.9,2.51780943]
[1770088398421,3.69192819,2306.5,2305.9,2.51780943]
[1770088398620,2.5170252,2306.7,2305.9,2.51780943]
[1770088398818,3.69402419,2306.6,2305.9,2.51780943]
[1770088399020,3.69402419,2306.5,2305.9,2.51780943]
[1770088399323,3.69385958,2306.4,2305.7,2.51780943]
[1770088399523,4.33772577,2306.6,2305.7,2.51780943]
[1770088399724,3.69568725,2306.5,2305.7,2.51780943]
[1770088399924,3.69568725,2306.4,2305.7,2.51780943]
[1770088400224,4.33772577,2306.6,2305.7,2.51780943]
[1770088400419,3.69743945,2306.5,2305.7,2.51780943]
[1770088400621,3.69743945,2306.4,2305.7,2.51780943]
[1770088400820,4.33772577,2306.6,2305.7,2.51780943]
[1770088401015,3.6926266,2306.5,2305.7,2.51780943]
[1770088401220,3.6926266,2306.4,2305.7,2.51780943]
[1770088401420,4.33772577,2306.6,2305.7,2.51780943]
[1770088401616,3.69433529,2306.5,2305.7,2.51780943]
[1770088401818,3.69433529,2306.4,2305.7,2.51780943]
[1770088402026,2.5170252,2306.6,2305.7,2.51780943]
[1770088402227,3.69430494,2306.5,2305.7,2.51780943]
[1770088402426,3.69430494,2306.4,2305.7,2.73485943]
[1770088402626,2.5170252,2306.6,2305.7,2.73485943]
[1770088402827,3.69428896,2306.5,2305.7,2.73485943]
[1770088403026,3.69428896,2306.4,2305.7,2.73485943]
[1770088403220,2.5170252,2306.6,2305.7,2.73485943]
[1770088403424,3.69440308,2306.5,2305.7,2.73485943]
[1770088403624,3.69440308,2306.4,2305.7,2.73485943]
[1770088403828,2.5170252,2306.7,2306.1,2.31644773]
[1770088404123,3.69470583,2306.6,2306.1,2.31644773]
[1770088404322,3.69470583,2306.5,2306.1,2.31644773]
[1770088404526,2.5170252,2306.7,2306.1,2.31644773]
[1770088404726,2.52166304,2306.9,2306.1,2.31644773]
[1770088404927,3.69512813,2306.8,2306.1,2.31644773]
[1770088405124,3.69512813,2306.7,2306.1,2.31644773]
[1770088405324,0.00463784,2306.9,2306.1,2.53346773]
[1770088405523,3.69457459,2306.8,2306.1,2.53346773]
[1770088405730,0.00463784,2306.9,2306.1,2.53346773]
[1770088405925,3.69516277,2306.8,2306.1,2.53346773]
[1770088406130,0.00463784,2306.9,2306.1,2.53346773]
[1770088406330,3.69538237,2306.8,2306.1,2.53346773]
[1770088406533,0.00463784,2306.9,2306.1,2.53346773]
[1770088406728,3.69279848,2306.8,2306.1,2.53346773]
[1770088406935,0.00463784,2306.9,2306.1,2.53346773]
[1770088407134,3.69242211,2306.8,2306.1,2.53346773]
[1770088407331,0.00463784,2306.9,2306.1,2.53346773]
[1770088407632,3.69194739,2306.8,2306.1,2.53346773]
[1770088407934,0.00463784,2306.9,2306.3,2.31644773]
[1770088411636,0.00463784,2306.9,2306.3,2.53344773]
[1770088413636,1.71354188,2306.9,2306.3,0.217]
[1770088413832,1.70890404,2306.7,2305.8,2.31644773]
[1770088414036,1.70890404,2306.5,2305.6,2.31644773]
[1770088414335,1.70890404,2306.3,2305.4,2.31644773]
[1770088414637,2.5170252,2306.6,2305.4,2.31644773]
[1770088414930,3.68540392,2306.5,2305.4,2.31644773]
[1770088415136,2.52166304,2306.9,2305.9,2.31644773]
[1770088415331,3.68616301,2306.8,2305.9,2.31644773]
[1770088415635,3.68616301,2306.7,2305.9,2.31644773]
[1770088415936,0.00463784,2306.9,2305.9,2.53347773]
[1770088416236,3.68645439,2306.8,2305.9,2.53347773]
[1770088416436,0.00463784,2306.9,2305.9,2.53347773]
[1770088416739,3.68684858,2306.8,2305.9,2.53347773]
[1770088417037,0.00463784,2306.9,2305.9,2.53347773]
[1770088417240,3.68685821,2306.8,2305.9,2.53347773]
[1770088417537,0.00463784,2306.9,2305.9,2.53347773]
[1770088417733,3.68687558,2306.8,2305.9,2.53347773]
[1770088417937,0.00463784,2306.9,2305.9,2.53347773]
[1770088418238,3.68691362,2306.8,2305.9,2.53347773]
[1770088418437,0.00463784,2306.9,2305.9,2.53347773]
[1770088418637,3.68688161,2306.8,2305.9,2.53347773]
[1770088418934,0.00463784,2306.9,2305.9,2.53347773]
[1770088419138,3.686881,2306.8,2305.9,2.53347773]
[1770088419338,0.00463784,2306.9,2305.9,2.53347773]
[1770088419537,3.68694688,2306.8,2305.9,2.53347773]
[1770088419738,0.00463784,2306.9,2305.9,2.53347773]
[1770088420036,3.6869717,2306.8,2305.9,2.53347773]
[1770088420236,3.6869717,2306.7,2305.9,2.53347773]
[1770088420439,0.00463784,2306.9,2305.9,2.53347773]
[1770088420634,3.68701106,2306.8,2305.9,2.53347773]
[1770088420835,3.68701106,2306.7,2305.9,2.53347773]
[1770088421041,0.00463784,2306.9,2305.9,2.53347773]
[1770088421333,3.68701891,2306.8,2305.9,2.53347773]
[1770088421539,1.68257549,2306.9,2305.9,2.53347773]
[1770088421739,5.36503356,2306.8,2305.9,2.53347773]
[1770088421934,1.67793765,2306.8,2305.9,2.53347773]
[1770088422138,3.68715513,2306.7,2305.9,2.53347773]
[1770088422338,1.67793765,2306.8,2305.9,2.53347773]
[1770088422539,3.68726008,2306.7,2305.9,2.53347773]
[1770088422735,1.67793765,2306.8,2305.9,2.53347773]
[1770088422943,1.6777278,2306.6,2305.5,2.31644773]
[1770088423143,1.6777278,2306.4,2305.5,2.53351773]
[1770088423443,3.68620552,2306.3,2305.5,2.53351773]
[1770088423644,1.6777278,2306.4,2305.5,2.53351773]
[1770088423943,3.68613544,2306.3,2305.5,2.53351773]
[1770088424240,1.6777278,2306.4,2305.5,2.53351773]
[1770088424441,3.68583907,2306.3,2305.5,2.53351773]
[1770088424642,1.6777278,2306.4,2305.5,2.53351773]
[1770088424838,3.68582707,2306.3,2305.6,0.21706]
[1770088425037,2.54073233,2306.6,2305.7,2.53349773]
[1770088425240,3.68588399,2306.5,2305.7,2.53349773]
[1770088425442,3.68588399,2306.4,2305.7,2.53349773]
[1770088425644,4.22351718,2306.6,2305.7,2.53349773]
[1770088425844,3.6864581,2306.5,2305.7,2.53349773]
[1770088426046,3.6864581,2306.4,2305.7,2.53349773]
[1770088426346,4.22351718,2306.6,2305.7,2.53349773]
[1770088426536,3.68700642,2306.5,2305.7,2.53349773]
[1770088426737,3.68700642,2306.4,2305.7,2.53349773]
[1770088426945,2.54073233,2306.6,2305.9,2.31644773]
[1770088427244,3.68725756,2306.5,2305.9,2.31644773]
[1770088427444,2.54073233,2306.7,2305.9,2.31644773]
[1770088427640,3.68764261,2306.6,2305.9,2.31644773]
[1770088427845,3.68764261,2306.5,2305.9,2.31644773]
[1770088428144,3.68964171,2306.4,2305.8,0.21704]
[1770088428347,1.68391027,2306.6,2305.8,0.21704]
[1770088428544,3.6896856,2306.5,2305.8,2.53348773]
[1770088428746,3.6896856,2306.4,2305.8,2.53348773]
[1770088428945,1.68391027,2306.6,2305.8,2.53348773]
[1770088429141,3.68995957,2306.5,2305.8,2.53348773]
[1770088429348,3.68995957,2306.4,2305.8,2.53348773]
[1770088429548,2.54073233,2306.7,2305.8,2.53348773]
[1770088429749,3.6899498,2306.6,2305.8,2.53348773]
[1770088429950,3.6899498,2306.5,2305.8,2.53348773]
[1770088430149,3.6899498,2306.4,2305.8,2.53348773]
[1770088430451,1.69787458,2306.5,2305.5,2.42755298]
[1770088430647,5.39116874,2306.4,2305.5,2.42755298]
[1770088430843,1.69971881,2306.2,2305.5,2.42755298]
[1770088431648,1.69971881,2306.2,2305.1,2.31624516]
[1770088431855,1.69971881,2306.0,2305.1,2.31624516]
[1770088432354,3.68915993,2305.9,2305.1,2.31624516]
[1770088432554,1.69971881,2306.0,2305.1,2.31624516]
[1770088432754,3.68916783,2305.9,2305.1,2.31624516]
[1770088433053,1.69971881,2306.0,2305.1,2.31624516]
[1770088433753,3.6878225,2305.9,2305.1,2.31624516]
[1770088433954,1.64584378,2305.9,2305.1,2.31624516]
[1770088435951,1.64411096,2305.7,2304.9,2.31624516]
[1770088436457,1.64411096,2305.5,2304.7,0.00387767]
[1770088436861,1.86119096,2305.5,2304.7,0.00387767]
[1770088437060,1.60833932,2305.3,2304.3,2.31624516]
[1770088438254,1.60833932,2305.3,2304.3,0.00398888]
[1770088438454,1.60446165,2305.1,2304.3,0.00398888]
[1770088438651,1.60800558,2305.1,2304.3,0.00398888]
[1770088438851,1.61153568,2304.9,2304.1,2.31624516]
[1770088439858,1.61153568,2304.9,2304.1,2.31982321]
[1770088440054,1.61153568,2304.9,2303.8,2.31624516]
[1770088440467,0.00354393,2305.1,2303.8,2.53347516]
[1770088440659,0.00354393,2305.1,2304.2,2.53344516]
[1770088442463,0.00354393,2305.1,2304.2,2.53818267]
[1770088443262,0.00354393,2305.1,2304.4,2.31624516]
[1770088444570,1.62629551,2305.8,2304.4,2.53342516]
[1770088444774,3.66846394,2305.7,2304.4,2.53342516]
[1770088444967,1.62629551,2305.8,2304.4,2.53342516]
[1770088445163,3.6688865,2305.7,2304.4,2.53342516]
[1770088445472,0.00455789,2305.7,2304.4,2.53342516]
[1770088445863,0.00455789,2305.7,2304.7,2.31624516]
[1770088446465,1.73461947,2305.7,2304.7,2.31624516]
[1770088446767,1.73006158,2305.5,2304.3,2.31624516]
[1770088447265,0.22161789,2305.7,2304.3,2.53343516]
[1770088447470,3.66980006,2305.6,2304.3,2.53343516]
[1770088447672,1.95167947,2305.7,2304.3,2.53343516]
[1770088447871,0.00455789,2305.7,2304.5,2.53340516]
[1770088448071,0.00455789,2305.7,2304.8,2.31624516]
[1770088448569,0.00455789,2305.7,2304.2,0.00473751]
[1770088448570,1.73461947,2305.7,2304.3,2.53342516]
[1770088448871,1.65660255,2305.5,2304.3,2.53342516]
[1770088453475,1.66456279,2305.3,2304.3,2.53342516]
[1770088454076,3.67263287,2305.2,2304.3,2.31624516]
[1770088454276,1.66456279,2305.1,2304.3,2.31624516]
[1770088454473,1.6424676,2304.9,2303.9,2.31624516]
[1770088455279,4.18319993,2305.2,2303.9,2.53346516]
[1770088455471,3.67279912,2305.1,2304.1,2.31624516]
[1770088455672,1.6424676,2305.2,2304.1,2.31624516]
[1770088455868,3.67288482,2305.1,2304.1,2.31624516]
[1770088456069,1.6424676,2305.2,2304.1,2.31624516]
[1770088456270,3.67288519,2305.1,2304.1,2.31624516]
[1770088456469,1.6424676,2305.2,2304.1,2.31624516]
[1770088456678,3.67330909,2305.1,2304.1,2.31624516]
[1770088456978,3.67333846,2305.0,2304.1,2.31624516]
[1770088457178,1.6424676,2305.2,2304.1,2.31624516]
[1770088457372,1.61235718,2305.1,2304.1,2.31624516]
[1770088457580,5.28568746,2305.0,2304.1,2.31624516]
[1770088457778,1.61235718,2305.0,2304.1,2.31624516]
[1770088458769,2.54073233,2305.4,2304.3,2.31624516]
[1770088458975,3.67563128,2305.3,2304.3,2.31624516]
[1770088459175,2.54073233,2305.5,2304.3,2.31624516]
[1770088459375,6.21822927,2305.4,2304.3,2.31624516]
[1770088459674,3.67749694,2305.3,2304.3,2.31624516]
[1770088459879,3.67749694,2305.3,2304.3,2.53342516]
[1770088460075,2.54073233,2305.5,2304.8,2.51646192]
[1770088460279,2.54529022,2305.7,2304.8,2.51646192]
[1770088460481,3.68093262,2305.6,2304.8,2.51646192]
[1770088460682,3.68093262,2305.5,2304.8,2.51646192]
[1770088460882,2.54529022,2305.7,2304.8,2.51646192]
[1770088461082,3.68551477,2305.6,2304.8,2.51646192]
[1770088461282,3.68551477,2305.5,2304.8,2.51646192]
[1770088461481,3.68551477,2305.4,2304.8,2.51646192]
[1770088461683,2.54529022,2305.7,2304.8,2.51646192]
[1770088461886,3.68776127,2305.6,2304.8,2.51646192]
[1770088462085,3.68776127,2305.5,2304.8,2.51646192]
[1770088462283,3.68776127,2305.4,2304.8,2.51646192]
[1770088462484,2.54073233,2305.6,2304.8,2.51646192]
[1770088462686,3.68910414,2305.5,2304.8,2.51646192]
[1770088462883,3.68910414,2305.4,2304.8,2.51646192]
[1770088463084,2.54073233,2305.6,2304.8,2.51646192]
[1770088463285,3.68954439,2305.5,2304.8,2.51646192]
[1770088463584,2.54529022,2305.7,2304.8,2.51646192]
[1770088463787,3.69128012,2305.6,2304.8,2.51646192]
[1770088463986,3.69128012,2305.5,2304.8,2.51646192]
[1770088464185,0.00455789,2305.7,2304.8,2.51646192]
[1770088464484,3.69289398,2305.6,2304.8,2.51646192]
[1770088464684,3.69289398,2305.5,2304.8,2.51646192]
[1770088464984,2.54529022,2305.7,2304.8,2.51646192]
[1770088465184,3.69352792,2305.6,2304.8,2.51646192]
[1770088465384,3.69352792,2305.5,2304.8,2.51646192]
[1770088465586,8.04401358,2305.4,2304.5,2.51646192]
[1770088465786,3.69352792,2305.3,2304.5,2.51646192]
[1770088465984,3.69352792,2305.2,2304.5,2.51646192]
[1770088466187,4.35048566,2305.4,2304.5,2.51646192]
[1770088466378,3.6938332,2305.3,2304.5,2.51646192]
[1770088466583,3.6938332,2305.2,2304.5,2.51646192]
[1770088466885,2.54073233,2305.4,2304.5,2.51646192]
[1770088467088,3.69413371,2305.3,2304.5,2.51646192]
[1770088467386,2.54073233,2305.4,2304.5,2.51646192]
[1770088467387,3.69413371,2305.2,2304.5,2.51646192]
[1770088467687,2.54073233,2305.4,2304.5,2.51646192]
[1770088467985,3.69448869,2305.3,2304.5,2.51646192]
[1770088468185,3.69448869,2305.2,2304.5,2.51646192]
[1770088468385,2.54073233,2305.4,2304.5,2.51646192]
[1770088468587,3.69494794,2305.3,2304.5,2.51646192]
[1770088468788,3.69494794,2305.2,2304.5,2.51646192]
[1770088468990,2.54073233,2305.4,2304.5,2.51646192]
[1770088469189,3.6949408,2305.3,2304.5,2.51646192]
[1770088469393,3.6949408,2305.2,2304.5,2.51646192]
[1770088469687,4.40662009,2305.4,2304.5,2.51646192]
[1770088469888,3.69561979,2305.3,2304.5,2.51646192]
[1770088470088,3.69561979,2305.2,2304.5,2.51646192]
[1770088470384,2.54073233,2305.5,2304.5,2.73363192]
[1770088470582,3.69503957,2305.4,2304.5,2.73363192]
[1770088470785,3.69503957,2305.3,2304.5,2.73363192]
[1770088470986,2.54073233,2305.5,2304.5,2.73363192]
[1770088471190,3.69453027,2305.4,2304.5,2.73363192]
[1770088471390,3.69453027,2305.3,2304.5,2.73363192]
[1770088471590,2.54073233,2305.5,2304.5,2.73363192]
[1770088471888,3.69452747,2305.4,2304.5,2.73363192]
[1770088472085,3.69452747,2305.3,2304.5,2.73363192]
[1770088472288,2.54073233,2305.5,2304.5,2.73363192]
[1770088472589,3.69409136,2305.4,2304.5,2.73363192]
[1770088472791,2.54073233,2305.6,2304.8,2.51646192]
[1770088472989,37.98561143,2305.7,2304.8,2.51646192]
[1770088472990,3.69406886,2305.5,2304.8,2.51646192]
[1770088473291,2.0713038,2305.6,2304.8,2.51646192]
[1770088473588,3.69373444,2305.5,2304.8,2.51646192]
[1770088473788,2.54529022,2305.7,2304.8,2.51646192]
[1770088473984,3.69374852,2305.6,2304.8,2.51646192]
[1770088474186,3.69374852,2305.5,2304.8,2.51646192]
[1770088474388,2.54529022,2305.7,2304.8,2.51646192]
[1770088474588,3.69341884,2305.6,2304.8,2.51646192]
[1770088474789,3.69341884,2305.5,2304.8,2.51646192]
[1770088475092,2.54529022,2305.7,2304.8,2.51646192]
[1770088475291,3.69357431,2305.6,2304.8,2.51646192]
[1770088475492,3.69357431,2305.5,2304.8,2.51646192]
[1770088475691,2.54529022,2305.7,2304.8,2.51646192]
[1770088475992,3.69341435,2305.6,2304.8,2.51646192]
[1770088476190,3.69341435,2305.5,2304.8,2.51646192]
[1770088476490,2.54529022,2305.7,2304.8,2.51646192]
[1770088476692,3.69342389,2305.6,2304.8,2.51646192]
[1770088476992,3.69342389,2305.5,2304.8,2.51646192]
[1770088477193,2.12702875,2305.6,2304.8,2.51646192]
[1770088477492,3.69395654,2305.5,2304.8,2.51646192]
[1770088477692,2.54529022,2305.7,2304.8,2.51646192]
[1770088477893,3.69374126,2305.6,2304.8,2.51646192]
[1770088478092,3.69374126,2305.5,2304.8,2.51646192]
[1770088478291,2.12702875,2305.6,2304.8,2.51646192]
[1770088478490,3.69368324,2305.5,2304.8,2.51646192]
[1770088478794,2.12702875,2305.6,2304.8,2.73360192]
[1770088479088,3.69359512,2305.5,2304.8,2.73360192]
[1770088479294,2.12702875,2305.6,2304.8,2.73360192]
[1770088479494,3.6933874,2305.5,2304.8,2.73360192]
[1770088479695,2.12702875,2305.6,2304.8,2.73360192]
[1770088479889,3.69335587,2305.5,2304.8,2.73360192]
[1770088480193,2.12702875,2305.6,2304.8,2.73360192]
[1770088480394,3.6927442,2305.5,2304.8,2.73360192]
[1770088480594,2.12702875,2305.6,2304.8,2.73360192]
[1770088480896,3.69253825,2305.5,2304.8,2.73360192]
[1770088481096,2.12702875,2305.6,2304.8,2.73360192]
[1770088481296,3.69253573,2305.5,2304.8,2.73360192]
[1770088481496,2.12702875,2305.6,2304.4,0.21717]
[1770088481692,2.12702875,2305.6,2304.5,2.73363192]
[1770088481693,2.12777189,2305.4,2304.5,2.73363192]
[1770088481898,2.54073233,2305.6,2304.5,2.73363192]
[1770088482098,3.69202559,2305.5,2304.5,2.73363192]
[1770088482396,3.69202559,2305.4,2304.5,2.73363192]
[1770088482597,2.54073233,2305.6,2304.5,2.73363192]
[1770088482797,3.69201817,2305.5,2304.5,2.73363192]
[1770088482998,3.69201817,2305.4,2304.5,2.73363192]
[1770088483298,2.12867664,2305.5,2304.5,2.73363192]
[1770088483498,3.69220457,2305.4,2304.5,2.73363192]
[1770088483797,2.12867664,2305.5,2304.5,2.73363192]
[1770088483993,3.69223475,2305.4,2304.5,2.73363192]
[1770088484194,2.12867664,2305.5,2304.5,2.73363192]
[1770088484398,3.69223438,2305.4,2304.5,2.73363192]
[1770088484599,2.12867664,2305.5,2304.5,2.73363192]
[1770088484796,3.69258816,2305.4,2304.5,2.73363192]
[1770088485002,2.12867664,2305.5,2304.5,2.73363192]
[1770088485195,3.69256059,2305.4,2304.5,2.73363192]
[1770088485398,3.69400044,2305.3,2304.5,2.73363192]
[1770088485602,2.1346091,2305.4,2304.5,2.73363192]
[1770088485903,3.69401085,2305.3,2304.5,2.73363192]
[1770088486103,2.54073233,2305.5,2304.5,2.73363192]
[1770088486404,3.6937481,2305.4,2304.7,2.51646192]
[1770088486602,2.1373766,2305.2,2304.5,2.73363192]
[1770088487803,3.51643333,2305.1,2304.5,2.51646192]
[1770088488005,2.1373766,2305.0,2304.3,5.06146192]
[1770088488902,3.69746264,2304.9,2304.3,5.06146192]
[1770088489106,2.1373766,2305.0,2304.3,5.06146192]
[1770088489307,7.21390149,2304.9,2304.3,5.06146192]
[1770088489505,3.69746816,2304.8,2304.3,5.06146192]
[1770088489707,3.51643333,2304.9,2304.3,5.06146192]
[1770088489910,5.79323468,2304.8,2304.3,2.545]
[1770088490109,2.09819794,2304.8,2304.3,2.545]
[1770088490807,2.09819794,2304.8,2304.1,2.73366192]
[1770088493208,2.09819794,2304.8,2304.1,2.51646192]
[1770088493408,2.09819794,2304.8,2303.9,2.46797875]
[1770088494305,2.54073233,2305.2,2304.2,2.46797875]
[1770088494507,0.21707,2305.6,2304.7,2.46797875]
[1770088494508,2.54073233,2305.6,2304.7,2.46797875]
[1770088494709,3.69769506,2305.5,2304.7,2.46797875]
[1770088494910,3.69769506,2305.4,2304.7,2.46797875]
[1770088495106,2.54073233,2305.6,2304.7,2.46797875]
[1770088495310,37.98561143,2305.7,2304.9,2.46797875]
[1770088495311,0.00455789,2305.7,2304.9,2.46797875]
[1770088495511,3.69778744,2305.6,2304.9,2.46797875]
[1770088495811,0.21714,2304.9,2304.1,5.20443831]
[1770088496107,2.54073233,2304.3,2303.6,5.20443831]
[1770088496309,2.54073233,2304.7,2303.8,1.32583859]
[1770088496508,3.69299979,2304.6,2303.8,1.32583859]
[1770088496709,3.69299979,2304.5,2303.9,5.20443831]
[1770088496905,3.69299979,2304.4,2303.9,5.20443831]
[1770088497106,2.54073233,2304.7,2303.9,5.20443831]
[1770088497314,3.88483182,2304.6,2303.9,5.20443831]
[1770088497516,3.88483182,2304.5,2303.9,5.20443831]
[1770088497712,3.88326818,2304.4,2303.9,5.20443831]
[1770088498014,1.29298733,2304.6,2303.9,5.20443831]
[1770088498215,3.88324708,2304.5,2303.9,5.20443831]
[1770088498412,1.29298733,2304.6,2303.9,5.20443831]
[1770088498613,3.88149359,2304.5,2303.9,5.20443831]
[1770088498812,1.29298733,2304.6,2303.9,5.20443831]
[1770088499014,3.88140621,2304.5,2303.9,5.20443831]
[1770088499212,1.29298733,2304.6,2303.9,7.67241706]
[1770088499512,3.88111499,2304.5,2303.9,7.67241706]
[1770088499812,1.29298733,2304.6,2303.9,7.67241706]
[1770088500012,3.8800639,2304.5,2303.9,7.67241706]
[1770088500205,1.29298733,2304.6,2303.9,7.67241706]
[1770088500411,1.28679405,2304.4,2303.9,5.20443831]
[1770088500617,1.29841597,2304.6,2303.9,5.20443831]
[1770088500814,3.88111541,2304.5,2303.9,5.20443831]
[1770088501015,1.29841597,2304.6,2303.9,5.20443831]
[1770088501210,3.8813802,2304.5,2304.0,2.46797875]
[1770088501412,1.29841597,2305.0,2304.0,2.46797875]
[1770088501620,1.29841597,2304.8,2304.1,5.20443831]
[1770088501909,3.88093828,2304.7,2304.1,5.20443831]
[1770088502111,1.29841597,2304.6,2303.7,2.46797875]
[1770088502417,3.88093828,2304.5,2303.7,2.46797875]
[1770088503619,1.29841597,2304.6,2303.7,2.46797875]
[1770088503820,1.29841597,2304.6,2303.8,7.67241706]
[1770088504021,1.29841597,2304.6,2303.8,2.46797875]
[1770088505819,3.88305844,2304.5,2303.8,2.46797875]
[1770088506021,1.29841597,2304.6,2303.8,2.46797875]
[1770088506218,3.88308228,2304.5,2303.9,5.20443831]
[1770088506520,1.29841597,2304.6,2303.9,5.20443831]
[1770088506718,3.88287316,2304.5,2303.9,5.20443831]
[1770088507013,1.29841597,2304.6,2303.9,5.20443831]
[1770088507215,3.88284137,2304.5,2303.9,5.20443831]
[1770088507419,1.29841597,2304.6,2303.9,5.20443831]
[1770088507622,3.88254152,2304.5,2303.8,2.46797875]
[1770088507816,1.29841597,2304.6,2303.9,5.20443831]
[1770088508120,3.87959954,2304.5,2303.9,7.67241706]
[1770088508320,2.54073233,2304.7,2303.9,2.46797875]
[1770088508516,5.25367142,2304.6,2304.0,5.20443831]